fUSD/lending_fUSD_20240424
["ID","MTS","AMOUNT","RATE_DAILY","PERIOD"]
[323379827,1713955840168,-155.18609304,0.00012866,2]
[323379829,1713955840177,-3848.09737272,0.00012866,2]
[323379831,1713955840186,-155.52981524,0.00012866,2]
[323379832,1713955840195,-202.26348816,0.00012866,2]
[323379833,1713955840204,-654.29395549,0.00012866,2]
[323379834,1713955840214,-911.38968817,0.00012866,2]
[323379835,1713955840224,-1992.21788626,0.00012866,2]
[323379836,1713955840233,-210.24561399,0.00012866,2]
[323379837,1713955840243,-155.73399192,0.00012866,2]
[323379838,1713955840252,-622.78216,0.00012867,2]
[323379839,1713955840263,-1140.95499999,0.00012867,2]
[323379840,1713955840272,-932.4089685,0.00012867,2]
[323379841,1713955840283,-150.0,0.00012867,5]
[323379842,1713955840301,-538.0,0.00012867,2]
[323379843,1713955840319,-169.31572795,0.00012867,2]
[323379844,1713955840328,-127511.29405162,0.00012868,2]
[323379845,1713955840342,-1151.7587563,0.00012868,2]
[323379847,1713955841373,-32431.4452527,0.00012868,2]
[323379848,1713955841435,-653.26000001,0.00012868,2]
[323379856,1713955843412,-932.40896849,0.00012867,2]
[323379857,1713955843422,-716805.55450182,0.00012868,2]
[323379858,1713955843552,-747339.56529984,0.00012868,2]
[323379861,1713955846189,-522.07,0.00012192,2]
[323379862,1713955846199,-150.0,0.00012192,2]
[323379863,1713955846208,-150.0,0.00012192,2]
[323379864,1713955846217,-419.16,0.00012192,2]
[323379865,1713955846226,-449.8239764,0.00012867,2]
[323379866,1713955846235,-3260.73997617,0.00012867,2]
[323379867,1713955846244,-42891.07520988,0.00012868,2]
[323379868,1713955846338,-2206.7053375,0.00012868,2]
[323379869,1713955846459,-2176.66254384,0.00012867,2]
[323379870,1713955846469,-535952.52876035,0.00012868,2]
[323379871,1713955846498,-4247.25,0.00012868,2]
[323379885,1713956368964,-615.67694606,9.386e-05,2]
[323379886,1713956431564,1384.32305394,9.386e-05,2]
[323379887,1713956431587,615.67694606,9.386e-05,2]
[323379888,1713956443563,1360.00000031,9.386e-05,2]
[323379889,1713956551063,24.32305363,9.386e-05,2]
[323379890,1713956551084,842.1490454,9.386e-05,2]
[323379891,1713956565058,866.13238885,9.386e-05,2]
[323379897,1713956691213,291.71856575,8.853e-05,2]
[323379898,1713956691237,313.31143425,8.853e-05,2]
[323379922,1713957032401,-963.31978213,9.998e-05,2]
[323379923,1713957032411,-642.88976069,0.0001,4]
[323379924,1713957032421,-160.45,0.00010572,2]
[323379925,1713957032430,-175.09,0.0001081,2]
[323379926,1713957032440,-150.0,0.00010999,2]
[323379927,1713957032449,-3123.21562192,0.00011,2]
[323379928,1713957032468,-564.72049553,0.00011,2]
[323379929,1713957032480,-337.89994505,0.00011,2]
[323379930,1713957032489,-59.66796806,0.00011,2]
[323379931,1713957032564,-140.33203194,0.00011,2]
[323379932,1713957032574,-175.94,0.00011106,2]
[323379933,1713957032583,-605.03,0.00011117,2]
[323379934,1713957032592,-127.63250357,0.00011117,2]
[323379935,1713957032604,-355.41749643,0.00011117,2]
[323379936,1713957032613,-483.05,0.00011147,2]
[323379937,1713957032622,-483.05,0.00011178,2]
[323379938,1713957032631,-483.05,0.00011208,2]
[323379939,1713957032640,-483.05,0.00011239,2]
[323379940,1713957032649,-226.06558121,0.00011269,2]
[323379941,1713957032667,-256.98441879,0.00011269,2]
[323379942,1713957032676,-43.64519831,0.000113,2]
[323379943,1713957032688,-439.40480169,0.000113,2]
[323379944,1713957032697,-62.9848346,0.00011304,2]
[323379945,1713957032720,-165.6451654,0.00011304,2]
[323379946,1713957032729,-178.56839626,0.00011304,2]
[323379947,1713957032740,-777.6566,0.00011304,2]
[323379948,1713957032751,-543.77500374,0.00011304,2]
[323379949,1713957032760,-379.81445884,0.0001133,2]
[323379950,1713957032771,-103.23554116,0.0001133,2]
[323379951,1713957032782,-483.05,0.00011361,2]
[323379952,1713957032790,-483.05,0.00011391,2]
[323379953,1713957032800,-483.05,0.00011422,2]
[323379954,1713957032810,-61.12260372,0.00011452,2]
[323379969,1713957038658,-421.92739628,0.00011452,2]
[323379970,1713957038668,-483.05,0.00011483,2]
[323379971,1713957038679,-483.05,0.00011513,2]
[323379972,1713957038689,-483.05,0.00011544,2]
[323379973,1713957038699,-483.05,0.00011574,2]
[323379974,1713957038709,-1151.17,0.00011576,2]
[323379975,1713957038718,-483.05,0.00011605,2]
[323379976,1713957038727,-483.05,0.00011635,2]
[323379977,1713957038736,-483.05,0.00011666,2]
[323379978,1713957038745,-483.05,0.00011696,2]
[323379979,1713957038754,-1000.0,0.00011736,2]
[323379980,1713957038763,-1000.0,0.00011799,2]
[323379981,1713957038772,-1953.4576,0.000118,2]
[323379982,1713957038782,-1000.0,0.000118,2]
[323379983,1713957038792,-1058.7341,0.000118,2]
[323379984,1713957038801,-95948.7491,0.000118,2]
[323379985,1713957038811,-677.4621,0.000118,2]
[323379986,1713957038821,-2476.2693,0.000118,2]
[323379987,1713957038831,-300.36753434,0.00011878,2]
[323379988,1713957038840,-302.05523726,0.0001189,2]
[323379989,1713957038849,-2000.0,0.00011898,2]
[323379990,1713957038858,-215.61228976,0.00011898,2]
[323379991,1713957038867,-1046.85070377,0.00011898,2]
[323379992,1713957038878,-330.69698042,0.00011899,2]
[323379993,1713957038889,-537.0,0.000119,2]
[323379994,1713957038900,-161867.43166456,0.000119,2]
[323380001,1713957040452,-4364.5127787,0.000119,2]
[323380002,1713957040523,-12307.77371451,0.000119,2]
[323380003,1713957040566,-2532.9872,0.000119,2]
[323380004,1713957040630,-253.44497898,0.000119,2]
[323380005,1713957040642,-763.99244376,0.000119,2]
[323380006,1713957040682,-291.39969361,0.000119,2]
[323380007,1713957040694,-5639.88690115,0.000119,2]
[323380008,1713957040729,-361464.18526469,0.000119,2]
[323380009,1713957040786,-658.89701571,0.000119,2]
[323380010,1713957040797,-3269.30578058,0.000119,2]
[323380011,1713957040809,-17793.43869762,0.000119,2]
[323380022,1713957043485,-5269.4448379,0.000119,2]
[323380023,1713957043822,-64022.08408477,0.000119,2]
[323380024,1713957043878,-635769.9999999,0.000119,2]
[323380025,1713957043889,-957.25129297,0.000119,2]
[323380026,1713957043904,-2460.99307291,0.000119,2]
[323380033,1713957046432,-836.26353238,0.00011878,2]
[323380034,1713957046442,-99392.79620175,0.000119,2]
[323380035,1713957046597,-16386.22723133,0.000119,2]
[323380036,1713957046701,-8999.19902762,0.000119,2]
[323380037,1713957063951,288.49240572,8.853e-05,2]
[323380038,1713957070267,944.18297447,8.853e-05,2]
[323380039,1713957083749,288.40093877,8.853e-05,2]
[323380040,1713957404175,-202.35678191,9.498e-05,2]
[323380041,1713957404196,-1781.91306782,9.499e-05,2]
[323380042,1713957404218,-544.52,9.501e-05,2]
[323380043,1713957404241,-18471.21015027,9.997e-05,2]
[323380045,1713958002913,-3777.04760435,9.505e-05,2]
[323380046,1713958002936,-548.95,9.506e-05,2]
[323380047,1713958002960,-2079.28634218,9.997e-05,2]
[323380048,1713958002983,-2000.0,9.998e-05,2]
[323380049,1713958003005,-642.88976069,0.0001,4]
[323380050,1713958003027,-416.47347174,0.0001,2]
[323380051,1713958003050,-74990.35282104,0.0001,2]
[323380052,1713958031652,-150.0,9.999e-05,2]
[323380053,1713958031995,-3850.0,0.0001,2]
[323380054,1713958069286,165.61224679,8e-05,2]
[323380055,1713958069309,376.42193025,8e-05,2]
[323380063,1713958231746,-545.46,9.518e-05,2]
[323380064,1713958231756,-74.15488805,9.998e-05,2]
[323380065,1713958231802,-531.82607022,9.998e-05,2]
[323380066,1713958231813,-852.40511334,9.998e-05,2]
[323380067,1713958231838,-541.61392839,9.998e-05,2]
[323380068,1713958231847,-300.0,9.999e-05,2]
[323380069,1713958231857,-2922.17036969,0.0001,2]
[323380070,1713958231869,-456.22198162,0.0001,2]
[323380071,1713958231912,-558.15546194,0.0001,2]
[323380072,1713958232047,-6158.3479369,0.0001,2]
[323380073,1713958232058,-8607.99176753,0.0001,2]
[323380074,1713958232090,-10024.31586601,0.0001,2]
[323380075,1713958232102,-4331.02072546,0.0001,2]
[323380076,1713958232115,-3768.91214963,0.0001,2]
[323380077,1713958232127,-903.55095595,0.0001,2]
[323380078,1713958232139,-1200.0,0.0001,2]
[323380079,1713958232177,-1733.56127489,0.0001,2]
[323380080,1713958232189,-2788.60585746,0.0001,2]
[323380081,1713958232200,-91501.36772141,0.0001,2]
[323380082,1713958232212,-2952.77,0.0001,2]
[323380083,1713958232299,150.0,1e-05,2]
[323380087,1713958237727,-3314.4156,0.0001,2]
[323380088,1713958237754,-332.42764587,0.0001,2]
[323380089,1713958237898,-5041.01239672,0.0001,2]
[323380090,1713958237909,-7113.3984585,0.0001,2]
[323380091,1713958237943,-848.26710872,0.0001,2]
[323380097,1713958239967,-7206.37868095,0.0001,2]
[323380099,1713958240074,-5821.64,0.0001,2]
[323380135,1713958242728,-1080.83440305,0.0001,2]
[323380136,1713958242743,-3635.0,0.0001,2]
[323380137,1713958242795,-46115.38469206,0.0001,2]
[323380138,1713958242948,-256.76976953,0.0001,2]
[323380166,1713958245670,-442.52882237,9.999e-05,2]
[323380167,1713958245680,-38053.23303753,0.0001,2]
[323380168,1713958245691,-35578.42761487,0.0001,2]
[323380169,1713958245703,-732.76636856,0.0001,2]
[323380170,1713958245743,-664.78,0.0001,2]
[323380171,1713958245837,-821.12092718,0.0001,2]
[323380172,1713958245950,-649.3866149,0.0001,2]
[323380173,1713958245964,-4030.75897368,0.0001,2]
[323380174,1713958257786,1473.57806975,8e-05,2]
[323380175,1713958257813,2000.0,8e-05,2]
[323380176,1713958257834,2000.0,8e-05,2]
[323380177,1713958257857,2000.0,8e-05,2]
[323380178,1713958257880,2000.0,8e-05,2]
[323380179,1713958257902,2000.0,8e-05,2]
[323380180,1713958257924,2000.0,8e-05,2]
[323380181,1713958257945,2000.0,8e-05,2]
[323380182,1713958257968,2000.0,8e-05,2]
[323380183,1713958257990,2000.0,8e-05,2]
[323380184,1713958258014,2000.0,8e-05,2]
[323380185,1713958258039,32797.16476623,8e-05,2]
[323380187,1713958961877,-150.0,9.384e-05,2]
[323380188,1713958967409,-150.0,9.384e-05,2]
[323380189,1713958975274,-150.0,0.00025522,7]
[323380190,1713958984944,-150.0,0.00025522,7]
[323380200,1713959431803,-2622.00544232,9.263e-05,2]
[323380201,1713959431863,-2107.80328928,9.263e-05,2]
[323380202,1713959431873,-4332.58774671,9.263e-05,2]
[323380203,1713959431884,-2179.97190532,9.264e-05,2]
[323380204,1713959431894,-2355.79540896,9.264e-05,2]
[323380205,1713959431904,-1294.20534572,9.265e-05,2]
[323380206,1713959431914,-1995.07350816,9.266e-05,2]
[323380207,1713959431923,-4323.32970433,9.267e-05,2]
[323380208,1713959431933,-1981.3778829,9.27e-05,2]
[323380223,1713959432273,-650.16907353,9.27e-05,2]
[323380224,1713959432287,-4150.0,9.27e-05,2]
[323380225,1713959432306,-518.40021227,9.27e-05,2]
[323380231,1713959438406,-12486.3656313,9.27e-05,2]
[323380232,1713959438415,-1113.6343687,9.365e-05,2]
[323380233,1713959438461,-2386.3656313,9.365e-05,2]
[323380234,1713959438471,-886.81467746,9.37e-05,2]
[323380235,1713959438481,-150.0,9.37e-05,2]
[323380236,1713959438492,-1306.07851843,9.376e-05,2]
[323380237,1713959438502,-381.34549443,9.385e-05,2]
[323380238,1713959438512,-4.93308638,9.387e-05,2]
[323380239,1713959438557,-513.24691362,9.387e-05,2]
[323380240,1713959438567,-63.86569187,9.455e-05,2]
[323380242,1713959439821,-593.45430813,9.455e-05,2]
[323380243,1713959439832,-324.78693502,9.468e-05,2]
[323380244,1713959439844,-1175.21306498,9.468e-05,2]
[323380245,1713959439854,-250.0,9.6e-05,2]
[323380246,1713959439863,-7218.45901495,9.611e-05,2]
[323380247,1713959439875,-11680.94098505,9.611e-05,2]
[323380248,1713959439886,-740.28,9.86e-05,2]
[323380249,1713959439896,-156.43,9.983e-05,2]
[323380250,1713959439905,-1000.0,9.998e-05,2]
[323380251,1713959439915,-9652.75319975,9.998e-05,2]
[323380252,1713959439925,-23385.15299288,9.999e-05,2]
[323380253,1713959439934,-69376.20473028,0.0001,2]
[323380254,1713959439954,-1906.93647508,0.0001,2]
[323380255,1713959439987,-1022.04087,0.0001,2]
[323380256,1713959440038,-2071.01854827,0.0001,2]
[323380257,1713959440058,-589.56767004,0.0001,2]
[323380258,1713959440069,-399.31545818,0.0001,2]
[323380259,1713959440113,-252.16720777,0.0001,2]
[323380260,1713959440151,-9257.40000601,0.0001,2]
[323380261,1713959440163,-882.14618098,0.0001,2]
[323380262,1713959440175,-3250.0,0.0001,2]
[323380263,1713959440193,-4298.94191913,0.0001,2]
[323380264,1713959440204,-1413.5324,0.0001,2]
[323380265,1713959440224,-32817.38135261,0.0001,2]
[323380266,1713959440233,-330.58,0.0001,2]
[323380267,1713959440242,-2409.95714,0.0001,2]
[323380268,1713959440251,-150.99,0.00010183,2]
[323380269,1713959440261,-413.64,0.00010441,2]
[323380271,1713959440271,-419.16,0.00010578,2]
[323380272,1713959440280,-350.47,0.00010578,2]
[323380273,1713959440290,-162.82,0.00010578,2]
[323380274,1713959440299,-522.07,0.00010578,2]
[323380275,1713959440308,-150.0,0.00010578,2]
[323380276,1713959440318,-150.0,0.00010578,2]
[323380277,1713959440330,-419.16,0.00010578,2]
[323380278,1713959440341,-150.0,0.00010578,2]
[323380279,1713959440352,-150.0,0.00010578,2]
[323380280,1713959440362,-350.47,0.00010578,2]
[323380281,1713959440372,-522.07,0.00010578,2]
[323380282,1713959440383,-150.0,0.00010578,2]
[323380283,1713959440392,-150.0,0.00010578,2]
[323380284,1713959440403,-419.16,0.00010578,2]
[323380285,1713959440413,-522.07,0.00010578,2]
[323380286,1713959440423,-568.53,0.00010641,2]
[323380287,1713959440433,-522.07,0.00010678,2]
[323380288,1713959440443,-419.16,0.00010678,2]
[323380289,1713959440453,-150.0,0.00010678,2]
[323380290,1713959440463,-150.0,0.00010678,2]
[323380291,1713959440472,-350.47,0.00010678,2]
[323380292,1713959440481,-419.16,0.00010778,2]
[323380293,1713959440491,-327.16,0.00010778,2]
[323380294,1713959440502,-350.47,0.00010778,2]
[323380295,1713959440512,-150.0,0.00010778,2]
[323380296,1713959440523,-522.07,0.00010778,2]
[323380297,1713959440533,-150.0,0.00010778,2]
[323380298,1713959440543,-150.0,0.00010959,2]
[323380299,1713959440553,-1429.4,0.00010959,2]
[323380300,1713959440563,-3354.86338542,0.00011,2]
[323380301,1713959440574,-3125.41499999,0.00011,2]
[323380302,1713959440583,-472.05640909,0.00011,2]
[323380303,1713959440593,-150.0,0.00011,2]
[323380304,1713959440603,-419.16,0.00011,2]
[323380305,1713959440612,-150.0,0.00011,2]
[323380306,1713959440621,-522.07,0.00011,2]
[323380307,1713959440632,-419.16,0.00011,2]
[323380308,1713959440642,-522.07,0.00011,2]
[323380309,1713959440652,-150.0,0.00011,2]
[323380310,1713959440662,-150.0,0.00011,2]
[323380311,1713959440674,-150.99,0.00011,2]
[323380312,1713959440684,-150.0,0.00011,2]
[323380313,1713959440694,-419.16,0.00011,2]
[323380314,1713959440705,-522.07,0.00011,2]
[323380315,1713959440715,-910.37,0.00011,2]
[323380316,1713959440725,-150.0,0.00011,2]
[323380317,1713959440735,-162.82,0.00011,2]
[323380318,1713959440745,-413.64,0.00011,2]
[323380319,1713959440757,-350.47,0.00011,2]
[323380320,1713959440766,-150.0,0.00011,2]
[323380321,1713959440775,-150.0,0.00011,2]
[323380322,1713959440785,-150.0,0.00011,2]
[323380323,1713959440795,-413.64,0.00011,2]
[323380324,1713959440805,-162.82,0.00011,2]
[323380325,1713959440815,-419.16,0.00011,2]
[323380326,1713959440825,-350.47,0.00011,2]
[323380327,1713959440837,-908.97,0.00011,2]
[323380328,1713959440846,-522.07,0.00011,2]
[323380329,1713959440856,-150.0,0.00011,2]
[323380330,1713959440867,-150.0,0.00011,2]
[323380331,1713959440877,-419.16,0.00011,2]
[323380332,1713959440887,-413.64,0.00011,2]
[323380333,1713959440897,-162.82,0.00011,2]
[323380334,1713959440906,-150.0,0.00011,2]
[323380335,1713959440917,-522.07,0.00011,2]
[323380336,1713959440927,-350.47,0.00011,2]
[323380337,1713959440937,-160.45,0.00011079,2]
[323380338,1713959440947,-650.17,0.0001126,2]
[323380339,1713959440958,-2206.9019,0.00011288,2]
[323380340,1713959440967,-150.0,0.000113,2]
[323380341,1713959440977,-159.3,0.000113,2]
[323380342,1713959440988,-150.0,0.000113,2]
[323380343,1713959440998,-297.35,0.000113,2]
[323380344,1713959441008,-419.16,0.000113,2]
[323380345,1713959441018,-150.0,0.000113,2]
[323380346,1713959441027,-300.0,0.000113,2]
[323380347,1713959441036,-413.64,0.000113,2]
[323380348,1713959441046,-150.0,0.000113,2]
[323380349,1713959441056,-300.0,0.000113,2]
[323380350,1713959441066,-150.0,0.000113,2]
[323380351,1713959441076,-910.37,0.000113,2]
[323380352,1713959441087,-150.0,0.000113,2]
[323380353,1713959441097,-162.82,0.000113,2]
[323380354,1713959441107,-150.68,0.000113,2]
[323380355,1713959441117,-522.07,0.000113,2]
[323380356,1713959441127,-495.91,0.000113,2]
[323380357,1713959441138,-164.72,0.00011304,2]
[323380358,1713959441148,-1000.0,0.00011304,2]
[323380359,1713959441158,-156.75,0.0001131,2]
[323380360,1713959441170,-844.67517406,0.00011432,2]
[323380361,1713959441180,-1330.9,0.00011513,2]
[323380362,1713959441191,-518.18,0.00011651,2]
[323380363,1713959441202,-1164.02732219,0.000119,2]
[323380364,1713959441212,-1000.0,0.00012,2]
[323380365,1713959441222,-351.99361455,0.00012,2]
[323380366,1713959441231,-1256.0,0.00012025,2]
[323380367,1713959441241,-343.31,0.00012055,2]
[323380368,1713959441250,-1000.0,0.000121,2]
[323380369,1713959441260,-2500.0,0.00012121,2]
[323380370,1713959441270,-1000.0,0.000122,2]
[323380371,1713959441280,-1733.38860355,0.00012222,2]
[323380372,1713959441290,-1175.60180934,0.0001223,7]
[323380373,1713959441300,-7500.0,0.00012233,2]
[323380374,1713959441311,-1000.0,0.000123,2]
[323380375,1713959441321,-1757.0,0.00012301,2]
[323380376,1713959441334,-503.0,0.00012301,2]
[323380377,1713959441344,-4978.0,0.00012329,2]
[323380378,1713959441353,-2348.92909547,0.00012333,2]
[323380379,1713959441362,-157.042419,0.00012498,2]
[323380380,1713959441371,-157.042419,0.00012498,2]
[323380381,1713959441380,-251.44790458,0.000125,2]
[323380382,1713959441390,-1375.0,0.000125,2]
[323380383,1713959441399,-157.042419,0.00012598,2]
[323380384,1713959441409,-157.042419,0.00012598,2]
[323380385,1713959441418,-740.28,0.00012599,2]
[323380386,1713959441427,-669.01082592,0.00012664,2]
[323380387,1713959441436,-669.01082589,0.00012692,2]
[323380388,1713959441446,-501.960938,0.000127,2]
[323380389,1713959441455,-1000.0,0.00012718,2]
[323380390,1713959441465,-669.01082589,0.0001272,2]
[323380391,1713959441476,-156.75,0.00012724,2]
[323380392,1713959441486,-669.01082589,0.00012748,2]
[323380393,1713959441497,-1000.0,0.00012764,2]
[323380394,1713959441507,-500.0,0.00012764,2]
[323380395,1713959441517,-1000.0,0.00012765,2]
[323380396,1713959441527,-1000.0,0.00012765,2]
[323380397,1713959441537,-500.0,0.00012765,2]
[323380398,1713959441547,-500.0,0.00012765,2]
[323380399,1713959441557,-2177.19396522,0.00012768,2]
[323380400,1713959441568,-172.1792927,0.00012768,2]
[323380401,1713959441578,-10000.0,0.00012776,2]
[323380402,1713959441588,-669.01082589,0.00012776,2]
[323380403,1713959441598,-1247.54886415,0.00012776,2]
[323380404,1713959441608,-10195.31352829,0.00012776,2]
[323380405,1713959441618,-161.31221784,0.00012776,2]
[323380406,1713959441628,-150.0,0.00012789,3]
[323380407,1713959441638,-274.1235,0.00012804,2]
[323380408,1713959441648,-905.06436232,0.00012853,2]
[323380409,1713959441659,-4582.35597345,0.00012854,2]
[323380410,1713959441669,-271.45359548,0.00012854,2]
[323380411,1713959441683,-169.31572795,0.00012855,2]
[323380412,1713959441694,-5356.7121525,0.00012855,2]
[323380413,1713959441705,-5761.8095281,0.00012855,2]
[323380414,1713959441715,-6166.9069037,0.00012855,2]
[323380415,1713959441725,-6572.0042794,0.00012855,2]
[323380416,1713959441735,-6977.101655,0.00012855,2]
[323380417,1713959441744,-271.42649588,0.00012855,2]
[323380436,1713959442924,-6269.27474128,0.00012855,2]
[323380437,1713959443190,-480.94410321,0.00012855,2]
[323380457,1713959445764,-211.8,0.00012025,2]
[323380458,1713959445773,-360.55369023,0.00012855,2]
[323380459,1713959445783,-815.1946,0.00012855,2]
[323380460,1713959445792,-205.63649508,0.00012855,2]
[323380461,1713959445930,-23.05434002,0.00012855,2]
[323380462,1713959445939,-245.9854095,0.00012855,2]
[323380463,1713959445948,-263.279984,0.00012855,2]
[323380464,1713959445957,-280.5745584,0.00012855,2]
[323380465,1713959445967,-297.8691329,0.00012855,2]
[323380466,1713959445976,-315.1637073,0.00012855,2]
[323380467,1713959445985,-614.927666,0.00012855,2]
[323380468,1713959445994,-661.4311138,0.00012855,2]
[323380469,1713959446003,-66.84816153,0.00012855,2]
[323380470,1713959446014,-641.08640007,0.00012855,2]
[323380471,1713959446023,-589.9268638,0.00012855,2]
[323380472,1713959446036,-164.5111455,0.00012855,2]
[323380473,1713959446046,-800.9414571,0.00012855,2]
[323380474,1713959446055,-847.4449048,0.00012855,2]
[323380475,1713959446064,-163.0389199,0.00012855,2]
[323380476,1713959446073,-2846.40595592,0.00012858,2]
[323380477,1713959446085,-24550.79552598,0.00012858,2]
[323380478,1713959446142,-62602.7985181,0.00012858,2]
[323380479,1713959446152,-370.94943444,0.00012862,3]
[323380480,1713959446162,-4715.90108485,0.00012863,2]
[323380481,1713959446173,-48258.85048598,0.00012863,2]
[323380482,1713959446192,-823.99999992,0.00012863,2]
[323380483,1713959580169,100000.0,0.000251,120]
[323380492,1713959776293,100000.0,0.000251,120]
[323380496,1713960214548,589.87,8.289e-05,2]
[323380497,1713960301017,7500.43283372,8.289e-05,2]
[323380498,1713960319446,7500.43283372,8.289e-05,2]
[323380499,1713960339231,7500.43283372,8.289e-05,2]
[323380500,1713960355028,6905.8441776,8.289e-05,2]
[323380501,1713960407199,7500.43283372,8.289e-05,2]
[323380502,1713960428702,7500.43283372,8.289e-05,2]
[323380503,1713960441601,7500.43283372,8.289e-05,2]
[323380504,1713960463056,7500.43283372,8.289e-05,2]
[323380505,1713960487115,3875.00266776,8.289e-05,2]
[323380506,1713960487138,3625.43016596,8.289e-05,2]
[323380507,1713960505066,7500.43283372,8.289e-05,2]
[323380508,1713960527062,7500.43283372,8.289e-05,2]
[323380509,1713960543063,7495.1677026,8.289e-05,2]
[323380513,1713960631981,-202.35678191,9.382e-05,2]
[323380515,1713960631990,-562.81446577,9.383e-05,2]
[323380516,1713960632002,-1008.9263289,9.383e-05,2]
[323380517,1713960632036,-608.23111065,9.383e-05,2]
[323380518,1713960632048,-316.19012302,9.383e-05,2]
[323380519,1713960632096,-43.27540892,9.383e-05,2]
[323380520,1713960632105,-1542.99529588,9.384e-05,2]
[323380521,1713960632126,-2780.33440845,9.384e-05,2]
[323380522,1713960632138,-4392.75735455,9.384e-05,2]
[323380523,1713960632183,-2949.54554678,9.384e-05,2]
[323380524,1713960632193,-150.0,9.385e-05,2]
[323380525,1713960632202,-1775.55226304,9.385e-05,2]
[323380526,1713960632212,-4729.8087316,9.386e-05,2]
[323380527,1713960632222,-3610.22092962,9.388e-05,2]
[323380528,1713960632505,-5409.4001,9.388e-05,2]
[323380529,1713960632519,-699.75321365,9.388e-05,2]
[323380530,1713960632530,-1626.0,9.391e-05,2]
[323380531,1713960632540,-203.99157121,0.0001,2]
[323380532,1713960632551,-503.6,0.00010017,2]
[323380533,1713960632561,-1500.0,0.00010069,2]
[323380534,1713960632572,-250.0,0.00010158,2]
[323380535,1713960632582,-19.56403517,0.00010205,2]
[323380536,1713960632595,-137.18596483,0.00010205,2]
[323380537,1713960632606,-1958.96,0.00010205,2]
[323380538,1713960632616,-159.76,0.00010226,2]
[323380539,1713960632626,-600.0,0.00010243,2]
[323380540,1713960632637,-150.99,0.0001027,2]
[323380541,1713960632648,-164.24,0.00010277,2]
[323380542,1713960632658,-159.76,0.00010314,2]
[323380543,1713960632668,-159.76,0.00010403,2]
[323380544,1713960632677,-159.76,0.00010492,2]
[323380545,1713960632687,-589.87,0.00010552,2]
[323380546,1713960632696,-17.72155358,0.00010581,2]
[323380547,1713960632708,-142.03844642,0.00010581,2]
[323380548,1713960632717,-159.76,0.0001067,2]
[323380549,1713960632726,-159.76,0.00010758,2]
[323380550,1713960632736,-207.01603358,0.00011,2]
[323380551,1713960632760,-3147.84735184,0.00011,2]
[323380552,1713960632770,-5475.71,0.00011,2]
[323380553,1713960632779,-158.09,0.00011057,2]
[323380554,1713960632788,-150.99,0.00011057,2]
[323380555,1713960632798,-158.09,0.00011064,2]
[323380556,1713960632808,-158.09,0.00011071,2]
[323380557,1713960632818,-158.09,0.00011078,2]
[323380558,1713960632830,-158.09,0.00011085,2]
[323380559,1713960632840,-158.09,0.00011092,2]
[323380560,1713960632850,-158.09,0.00011099,2]
[323380561,1713960632860,-158.09,0.00011106,2]
[323380562,1713960632870,-117.98224553,0.00011112,2]
[323380563,1713960632994,-40.10775447,0.00011112,2]
[323380564,1713960633004,-327.05,0.00011176,2]
[323380565,1713960633014,-197.19,0.00011259,2]
[323380566,1713960633024,-499.99,0.00011493,2]
[323380567,1713960633035,-400.0,0.0001151,2]
[323380568,1713960633045,-600.0,0.00011524,2]
[323380569,1713960633058,-2172.65343842,0.000117,2]
[323380578,1713960638021,-928.88381969,0.000117,2]
[323380579,1713960638031,-256.1496,0.000117,2]
[323380580,1713960638043,-1224.30132565,0.00011777,2]
[323380581,1713960638059,-6663.1,0.00011777,2]
[323380582,1713960638089,-2112.59867435,0.00011777,2]
[323380583,1713960638098,-7127.3631,0.00011799,2]
[323380584,1713960638108,-18238.0718,0.000118,2]
[323380585,1713960638118,-468.7988,0.000118,2]